bitfinex/quotes_BTCUSD_20240717
["timestamp","ask_amount","ask_price","bid_price","bid_amount"]
[1721242582004,0.01335,64603.0,64602.0,1.74855175]
[1721242582272,0.01335,64603.0,64602.0,1.90690132]
[1721242582462,0.00835,64603.0,64602.0,0.64596558]
[1721242582626,0.00835,64603.0,64602.0,0.53034257]
[1721242582827,0.00835,64603.0,64602.0,1.009167]
[1721242583226,0.00835,64603.0,64602.0,1.18654874]
[1721242583427,0.00835,64603.0,64602.0,1.49613574]
[1721242583653,0.00835,64603.0,64602.0,1.18654874]
[1721242584504,0.00835,64603.0,64602.0,1.17254874]
[1721242584705,0.00835,64603.0,64602.0,1.33076411]
[1721242585014,0.00835,64603.0,64602.0,1.03417711]
[1721242585143,0.00835,64603.0,64602.0,1.01117711]
[1721242585349,0.00835,64603.0,64602.0,1.03317711]
[1721242585538,0.00835,64603.0,64602.0,1.34276411]
[1721242585731,0.00835,64603.0,64602.0,1.32976411]
[1721242585937,0.00835,64603.0,64602.0,1.32076411]
[1721242586163,0.00835,64603.0,64602.0,1.34476411]
[1721242587193,0.00835,64603.0,64602.0,1.40766411]
[1721242587404,0.00835,64603.0,64602.0,1.47006411]
[1721242587983,0.00835,64603.0,64602.0,1.48306411]
[1721242588180,0.00835,64603.0,64602.0,1.46006411]
[1721242588291,0.00835,64603.0,64602.0,1.47406411]
[1721242588501,0.00835,64603.0,64602.0,1.48306411]
[1721242588929,0.00835,64603.0,64602.0,1.47406411]
[1721242589360,0.00835,64603.0,64602.0,1.48506411]
[1721242591223,0.00835,64603.0,64602.0,1.49341411]
[1721242592528,0.00835,64603.0,64602.0,0.18156537]
[1721242592734,0.472724,64603.0,64602.0,0.025]
[1721242592837,0.611624,64603.0,64602.0,0.025]
[1721242593042,0.31497558,64603.0,64602.0,0.025]
[1721242593701,0.31497558,64603.0,64602.0,0.011]
[1721242594109,0.31497558,64603.0,64602.0,0.013]
[1721242594314,0.31497558,64603.0,64595.0,0.0657]
[1721242594617,0.31497558,64603.0,64602.0,0.007]
[1721242595064,0.31497558,64603.0,64596.0,0.2880751]
[1721242595459,0.303041,64603.0,64596.0,0.2880751]
[1721242595792,0.01296782,64602.0,64596.0,0.2880751]
[1721242597676,0.01296782,64602.0,64600.0,0.154798]
[1721242599442,0.142761,64609.0,64601.0,0.09099664]
[1721242599643,0.142761,64609.0,64602.0,0.002794]
[1721242599847,0.01296782,64608.0,64604.0,0.148194]
[1721242600049,0.4912,64614.0,64607.0,0.530763]
[1721242600249,0.4912,64614.0,64613.0,0.2212]
[1721242600448,0.025,64614.0,64613.0,0.2212]
[1721242601273,0.025,64614.0,64613.0,0.375967]
[1721242601484,0.026,64614.0,64613.0,0.49091117]
[1721242602879,0.026,64614.0,64613.0,0.63171117]
[1721242603469,0.026,64614.0,64613.0,0.63371117]
[1721242604455,0.026,64614.0,64613.0,1.40716291]
[1721242604599,0.026,64614.0,64613.0,1.43016291]
[1721242605027,0.026,64614.0,64613.0,1.55865911]
[1721242605235,0.026,64614.0,64613.0,1.86819411]
[1721242605436,0.026,64614.0,64613.0,1.73969791]
[1721242606085,0.026,64614.0,64613.0,1.73769791]
[1721242606312,0.025,64614.0,64613.0,1.73769791]
[1721242606519,0.025,64614.0,64613.0,1.74769791]
[1721242606831,0.025,64614.0,64613.0,1.75469791]
[1721242607177,0.025,64614.0,64613.0,1.74769791]
[1721242607376,0.025,64614.0,64613.0,1.75469791]
[1721242608573,0.025,64614.0,64613.0,0.35314417]
[1721242608784,0.025,64614.0,64613.0,0.017]
[1721242609192,0.50239104,64614.0,64613.0,0.017]
[1721242609392,0.81192104,64614.0,64613.0,0.017]
[1721242610113,0.81192104,64614.0,64613.0,0.01]
[1721242610310,0.154774,64611.0,64602.0,0.002794]
[1721242610509,0.154774,64611.0,64603.0,0.0628294]
[1721242610751,0.01309604,64610.0,64604.0,0.002794]
[1721242612818,0.01509604,64610.0,64604.0,0.002794]
[1721242615842,0.16987004,64610.0,64604.0,0.002794]
[1721242616196,0.154786,64605.0,64604.0,0.002794]
[1721242616414,0.309573,64605.0,64596.0,0.0668751]
[1721242616542,0.15479,64604.0,64597.0,0.04692401]
[1721242616945,0.01299433,64603.0,64597.0,0.04692401]
[1721242617145,0.01299433,64603.0,64597.0,0.04413001]
[1721242617728,0.01299433,64603.0,64598.0,0.002794]
[1721242617897,0.01299433,64603.0,64599.0,0.0422934]
[1721242618658,0.16778633,64603.0,64599.0,0.0422934]
[1721242619759,0.16778633,64603.0,64599.0,0.0472934]
[1721242620201,0.16778633,64603.0,64599.0,0.0552934]
[1721242621498,0.01299433,64603.0,64600.0,0.1385]
[1721242621623,0.01299433,64603.0,64601.0,0.03927314]
[1721242621827,0.309556,64609.0,64601.0,0.03927314]
[1721242622034,0.01299433,64602.0,64601.0,0.19406914]
[1721242622234,0.154776,64610.0,64601.0,0.19406914]
[1721242622447,0.154776,64610.0,64602.0,0.002794]
[1721242622634,0.16777133,64609.0,64602.0,0.002794]
[1721242622838,0.01299433,64609.0,64602.0,0.002794]
[1721242623081,0.01299433,64609.0,64603.0,0.08711631]
[1721242623414,0.16777333,64608.0,64604.0,0.002794]
[1721242623694,0.16777333,64608.0,64603.0,0.08711631]
[1721242623910,0.01299433,64608.0,64603.0,0.08711631]
[1721242624121,0.155777,64610.0,64604.0,0.07956895]
[1721242624266,0.01299433,64609.0,64604.0,0.07956895]
[1721242624665,0.01299433,64609.0,64604.0,0.08156895]
[1721242625122,0.01399433,64609.0,64604.0,0.08156895]
[1721242625777,0.01299433,64609.0,64604.0,0.08156895]
[1721242625998,0.01399433,64609.0,64605.0,0.06632791]
[1721242626166,0.01399433,64609.0,64605.0,0.06353391]
[1721242626753,0.01299433,64609.0,64605.0,0.06353391]
[1721242627364,0.16777233,64609.0,64605.0,0.06353391]
[1721242627758,0.01299433,64609.0,64606.0,0.002794]
[1721242627930,0.01299433,64609.0,64607.0,0.01458969]
[1721242628132,0.01299433,64609.0,64605.0,0.06353391]
[1721242628714,0.01399433,64609.0,64605.0,0.06353391]
[1721242628891,0.01399433,64609.0,64606.0,0.002794]
[1721242629679,0.01399433,64609.0,64608.0,0.685538]
[1721242629827,0.01399433,64609.0,64608.0,0.86291974]
[1721242629828,0.01299433,64609.0,64608.0,0.86291974]
[1721242630026,0.02583,64614.0,64608.0,0.53589351]
[1721242630235,0.02583,64614.0,64609.0,0.002794]
[1721242630459,0.01299433,64613.0,64609.0,0.002794]
[1721242631210,0.154774,64610.0,64608.0,0.13731177]
[1721242631410,0.154774,64610.0,64602.0,0.0763]
[1721242631623,0.0129655,64609.0,64603.0,0.002794]
[1721242632000,0.15607479,64608.0,64602.0,0.002794]
[1721242632209,0.15607479,64608.0,64598.0,0.002794]
[1721242632411,0.15607479,64608.0,64597.0,0.1411]
[1721242632412,0.154787,64605.0,64600.0,0.0144807]
[1721242633012,0.0129655,64604.0,64600.0,0.0144807]
[1721242633261,0.154784,64606.0,64600.0,0.0144807]
[1721242633437,0.0129655,64603.0,64600.0,0.0144807]
[1721242633614,0.154784,64606.0,64600.0,0.0144807]
[1721242633818,0.0129655,64602.0,64601.0,0.03140927]
[1721242634019,0.154784,64606.0,64601.0,0.03140927]
[1721242634247,0.0129655,64602.0,64601.0,0.03140927]
[1721242634424,0.154784,64606.0,64601.0,0.03140927]
[1721242635151,0.0129655,64605.0,64601.0,0.03140927]
[1721242635330,0.0129655,64605.0,64602.0,0.0342708]
[1721242635939,0.1677525,64605.0,64602.0,0.0342708]
[1721242636825,0.1677525,64605.0,64602.0,0.0402708]
[1721242637182,0.1677525,64605.0,64602.0,0.0432708]
[1721242639431,0.154789,64604.0,64602.0,0.0432708]
[1721242639637,0.16770577,64604.0,64603.0,0.00900738]
[1721242640828,0.47728377,64604.0,64603.0,0.01600738]
[1721242641038,0.78686177,64604.0,64603.0,0.01600738]
[1721242641240,0.78686177,64604.0,64603.0,0.007]
[1721242641650,1.14488,64604.0,64603.0,0.007]
[1721242641820,1.864036,64604.0,64603.0,0.007]
[1721242642078,1.95314408,64604.0,64603.0,0.007]
[1721242642282,1.86495672,64604.0,64603.0,0.007]
[1721242642484,1.91842473,64604.0,64603.0,0.011]
[1721242642694,1.86495672,64604.0,64603.0,0.011]
[1721242642942,1.86495672,64604.0,64603.0,0.007]
[1721242643144,1.530986,64600.0,64582.0,0.002794]
[1721242643352,1.80212495,64600.0,64582.0,0.002794]
[1721242643479,1.81493484,64600.0,64582.0,0.002794]
[1721242643687,1.93076401,64600.0,64582.0,0.002794]
[1721242643886,1.81493484,64600.0,64582.0,0.002794]
[1721242644084,1.86493484,64600.0,64582.0,0.002794]
[1721242644489,1.98272643,64600.0,64599.0,0.001913]
[1721242644690,1.93272643,64600.0,64599.0,0.001913]
[1721242644893,1.98372643,64600.0,64599.0,0.002913]
[1721242645104,1.95872643,64600.0,64599.0,0.002913]
[1721242645295,1.95841681,64600.0,64599.0,0.002913]
[1721242645853,1.84262522,64600.0,64599.0,0.002913]
[1721242646350,2.26797891,64600.0,64599.0,0.002913]
[1721242646553,2.22939701,64600.0,64599.0,0.002913]
[1721242646798,2.22939701,64600.0,64599.0,1e-06]
[1721242646799,2.5922496,64600.0,64599.0,1e-06]
[1721242646998,1.546065,64587.0,64578.0,0.000913]
[1721242647167,1.90951916,64587.0,64578.0,0.000913]
[1721242647374,1.87223649,64587.0,64578.0,0.000913]
[1721242647572,1.82964965,64587.0,64578.0,0.000913]
[1721242647772,1.92223649,64587.0,64578.0,0.000913]
[1721242648173,2.95309549,64587.0,64578.0,0.000913]
[1721242648383,2.86144088,64587.0,64578.0,0.000913]
[1721242648737,2.87244088,64587.0,64586.0,0.00141168]
[1721242648963,3.18209988,64587.0,64586.0,6.8e-07]
[1721242649160,1.443641,64579.0,64578.0,0.000913]
[1721242649511,2.70175493,64579.0,64578.0,0.000913]
[1721242649642,2.71420689,64579.0,64578.0,0.000913]
[1721242649848,2.64489051,64579.0,64578.0,0.000913]
[1721242650089,2.28519251,64579.0,64578.0,0.000913]
[1721242650242,1.9580767,64579.0,64578.0,0.000913]
[1721242650499,1.9720767,64579.0,64578.0,0.000913]
[1721242650909,2.0220767,64579.0,64578.0,0.000913]
[1721242651108,2.0360767,64579.0,64578.0,0.000913]
[1721242651361,1.9720767,64579.0,64578.0,0.000913]
[1721242651909,1.9860767,64579.0,64578.0,0.000913]
[1721242652390,1.9720767,64579.0,64578.0,0.000913]
[1721242652592,1.9860767,64579.0,64578.0,0.000913]
[1721242652939,2.2957747,64579.0,64578.0,0.000913]
[1721242653136,2.2957747,64579.0,64578.0,0.001913]
[1721242653137,2.3597747,64579.0,64578.0,0.001913]
[1721242653594,2.3317747,64579.0,64578.0,0.000913]
[1721242653794,2.3317747,64579.0,64578.0,0.001913]
[1721242653795,2.3177747,64579.0,64578.0,0.001913]
[1721242653963,2.3317747,64579.0,64578.0,0.001913]
[1721242654169,2.3457747,64579.0,64578.0,0.001913]
[1721242654551,2.3317747,64579.0,64578.0,0.001913]
[1721242654959,2.3457747,64579.0,64578.0,0.001913]
[1721242657749,2.2957747,64579.0,64578.0,0.001913]
[1721242658313,0.91469696,64579.0,64578.0,0.001913]
[1721242658659,1.0550787,64579.0,64578.0,0.001913]
[1721242658828,1.3787767,64579.0,64578.0,0.001913]
[1721242659693,1.3647767,64579.0,64578.0,0.000913]
[1721242659917,1.3787767,64579.0,64578.0,0.001913]
[1721242660321,1.3647767,64579.0,64578.0,0.000913]
[1721242660518,1.3647767,64579.0,64578.0,0.001913]
[1721242661031,1.3787767,64579.0,64578.0,0.001913]
[1721242661426,1.3647767,64579.0,64578.0,0.001913]
[1721242661861,1.3787767,64579.0,64578.0,0.001913]
[1721242663201,1.3787767,64579.0,64578.0,0.00150132]
[1721242664412,1.6884747,64579.0,64578.0,0.00150132]
[1721242664604,1.3787767,64579.0,64578.0,0.00150132]
[1721242669026,1.3507767,64579.0,64578.0,0.00050132]
[1721242669224,1.3647767,64579.0,64578.0,0.00150132]
[1721242670046,1.3647767,64579.0,64578.0,0.00050132]
[1721242670216,1.3507767,64579.0,64578.0,0.00050132]
[1721242670442,1.3787767,64579.0,64578.0,0.00150132]
[1721242671029,1.3647767,64579.0,64578.0,0.00150132]
[1721242671367,1.3787767,64579.0,64578.0,0.00150132]
[1721242671682,1.3647767,64579.0,64578.0,0.00150132]
[1721242671885,1.3507767,64579.0,64578.0,0.00050132]
[1721242672146,1.3647767,64579.0,64578.0,0.00050132]
[1721242672343,1.3787767,64579.0,64578.0,0.00150132]
[1721242672559,1.3787767,64579.0,64578.0,0.00050132]
[1721242672857,1.3927767,64579.0,64578.0,0.00150132]
[1721242673311,1.3927767,64579.0,64578.0,0.00050132]
[1721242673312,1.3647767,64579.0,64578.0,0.00050132]
[1721242673492,1.3647767,64579.0,64578.0,0.00150132]
[1721242673807,1.3787767,64579.0,64578.0,0.00150132]
[1721242674301,1.3647767,64579.0,64578.0,0.00150132]
[1721242674442,1.4326896,64579.0,64578.0,0.00150132]
[1721242674646,1.5418896,64579.0,64578.0,0.00150132]
[1721242674845,2.0580896,64579.0,64578.0,0.00150132]
[1721242675048,2.8986856,64579.0,64578.0,3.2e-07]
[1721242675250,2.97631271,64579.0,64578.0,3.2e-07]
[1721242675716,3.28601071,64579.0,64578.0,3.2e-07]
[1721242675941,3.33211381,64579.0,64578.0,3.2e-07]
[1721242676140,3.28601071,64579.0,64578.0,3.2e-07]
[1721242676341,1.084345,64555.0,64554.0,0.002794]
[1721242676548,0.464727,64554.0,64553.0,0.0633]
[1721242676752,0.61910874,64554.0,64553.0,0.0633]
[1721242677160,1.25104428,64554.0,64553.0,0.0633]
[1721242677358,0.78684454,64554.0,64553.0,0.07746]
[1721242678678,0.79984454,64554.0,64553.0,0.07746]
[1721242678854,0.79984454,64554.0,64553.0,0.0633]
[1721242678996,0.78684454,64554.0,64553.0,0.0633]
[1721242679200,0.79884454,64554.0,64553.0,0.0633]
[1721242679809,0.48902654,64554.0,64553.0,0.1389]
[1721242680016,0.48902654,64554.0,64553.0,0.15279]
[1721242680236,0.50302654,64554.0,64553.0,0.15279]
[1721242681045,0.48902654,64554.0,64553.0,0.15279]
[1721242681403,0.49002654,64554.0,64553.0,0.15279]
[1721242681607,0.49902654,64554.0,64553.0,0.15279]
[1721242682182,0.03429954,64554.0,64553.0,0.15279]
[1721242683153,0.022,64554.0,64553.0,0.15279]
[1721242683734,0.009,64554.0,64553.0,0.15279]
[1721242683906,0.022,64554.0,64553.0,0.15279]
[1721242684309,0.009,64554.0,64553.0,0.15279]
[1721242684511,0.154897,64559.0,64554.0,0.0608]
[1721242684723,0.154897,64559.0,64557.0,0.0608]
[1721242684923,0.0119672,64558.0,64557.0,0.0608]
[1721242685552,0.1668662,64558.0,64557.0,0.0608]
[1721242687197,0.1758662,64558.0,64557.0,0.0608]
[1721242687407,0.0329672,64558.0,64557.0,0.1416]
[1721242687552,0.0329672,64558.0,64557.0,0.17569208]
[1721242688115,0.0209672,64558.0,64557.0,0.17569208]
[1721242688375,0.0179672,64558.0,64557.0,0.17569208]
[1721242688574,0.0209672,64558.0,64557.0,0.17569208]
[1721242690281,0.0149672,64558.0,64557.0,0.17569208]
[1721242690702,0.0169672,64558.0,64557.0,0.17569208]
[1721242691101,0.0169672,64558.0,64557.0,0.1416]
[1721242691102,0.0149672,64558.0,64557.0,0.1416]
[1721242691597,0.0129672,64558.0,64557.0,0.1416]
[1721242691928,0.0119672,64558.0,64557.0,0.1416]
[1721242692167,0.0139672,64558.0,64557.0,0.1436]
[1721242692379,0.002,64558.0,64557.0,0.1436]
[1721242692577,0.0139672,64558.0,64557.0,0.1749316]
[1721242692780,0.002,64558.0,64557.0,0.1729316]
[1721242692975,0.0139672,64558.0,64557.0,0.1729316]
[1721242693179,0.002,64558.0,64557.0,0.1729316]
[1721242693420,0.0139672,64558.0,64557.0,0.1729316]
[1721242694201,0.0119672,64558.0,64557.0,0.1729316]
[1721242694542,0.002,64558.0,64557.0,0.1416]
[1721242694906,0.0139672,64558.0,64557.0,0.1436]
[1721242695104,0.0119672,64558.0,64557.0,0.1436]
[1721242695345,0.0119672,64558.0,64557.0,0.1416]
[1721242695528,0.0119672,64558.0,64557.0,0.1436]
[1721242695734,0.0119672,64558.0,64557.0,0.1594403]
[1721242696292,0.0119672,64558.0,64557.0,0.1574403]
[1721242696488,0.0119672,64558.0,64557.0,0.1594403]
[1721242696717,0.154895,64560.0,64557.0,0.1594403]
[1721242696912,0.0119672,64558.0,64557.0,0.1594403]
[1721242697129,0.4662,64562.0,64558.0,0.1495]
[1721242697330,0.4662,64562.0,64561.0,0.154892]
[1721242697701,0.4662,64562.0,64561.0,0.304392]
[1721242697878,0.4662,64562.0,64561.0,0.614176]
[1721242698014,0.4662,64562.0,64561.0,0.7149358]
[1721242698782,0.4692,64562.0,64561.0,0.7149358]
[1721242698984,0.4712,64562.0,64561.0,0.7149358]
[1721242699196,0.4712,64562.0,64561.0,0.4051518]
[1721242699995,0.780979,64562.0,64561.0,0.1515]
[1721242700199,0.935868,64562.0,64561.0,0.1515]
[1721242700928,0.930868,64562.0,64561.0,0.1515]
[1721242701319,0.930868,64562.0,64561.0,0.1495]
[1721242701530,0.932868,64562.0,64561.0,0.1495]
[1721242701739,0.932868,64562.0,64561.0,0.16603403]
[1721242701952,0.937868,64562.0,64561.0,0.16603403]
[1721242702727,0.94996641,64562.0,64561.0,0.16603403]
[1721242703099,0.64018741,64562.0,64561.0,0.16603403]
[1721242704176,0.48529841,64562.0,64561.0,0.16603403]
[1721242704549,0.64018741,64562.0,64561.0,0.16603403]
[1721242705231,0.48529841,64562.0,64561.0,0.16603403]
[1721242707453,0.48529841,64562.0,64561.0,0.32092603]
[1721242708296,0.47829841,64562.0,64561.0,0.32092603]
[1721242708619,0.47829841,64562.0,64561.0,0.32592603]
[1721242711099,0.47829841,64562.0,64561.0,0.63571003]
[1721242715184,0.47829841,64562.0,64561.0,0.17103403]
[1721242722419,0.47829841,64562.0,64561.0,0.17003403]
[1721242722653,0.32187741,64562.0,64561.0,0.02144703]
[1721242722924,0.32187741,64562.0,64561.0,0.004913]
[1721242722925,1.33100615,64562.0,64561.0,0.004913]
[1721242723128,1.35392538,64562.0,64561.0,0.004913]
[1721242723301,1.51662538,64562.0,64561.0,0.004913]
[1721242723506,1.51662538,64562.0,64561.0,0.001913]
[1721242723715,1.63254337,64562.0,64561.0,0.001913]
[1721242723921,1.51663578,64562.0,64561.0,0.003913]
[1721242724110,1.51663578,64562.0,64561.0,0.000913]
[1721242724111,1.63262348,64562.0,64561.0,0.000913]
[1721242724289,1.64262348,64562.0,64561.0,0.000913]
[1721242724491,1.63042966,64562.0,64561.0,0.000913]
[1721242725391,1.84741478,64562.0,64561.0,0.000913]
[1721242726149,1.83741478,64562.0,64561.0,0.000913]
[1721242726574,1.85041478,64562.0,64561.0,0.000913]
[1721242726932,1.90041478,64562.0,64561.0,0.000913]
[1721242727129,1.85521265,64562.0,64561.0,0.000913]
[1721242727956,1.54543365,64562.0,64561.0,0.000913]
[1721242728160,1.66143476,64562.0,64561.0,0.000913]
[1721242728365,1.59873476,64562.0,64561.0,0.000913]
[1721242728582,1.48273365,64562.0,64561.0,0.000913]
[1721242728950,1.40243365,64562.0,64561.0,0.000913]
[1721242729154,1.49523496,64562.0,64561.0,0.000913]
[1721242729845,1.34085322,64562.0,64561.0,0.000913]
[1721242730269,1.24805191,64562.0,64561.0,0.000913]
[1721242730471,1.03107395,64562.0,64561.0,0.000913]
[1721242730682,0.91054541,64562.0,64561.0,0.0750243]
[1721242730889,0.93843134,64562.0,64561.0,0.0750243]
[1721242731258,0.91054541,64562.0,64561.0,0.0750243]
[1721242731466,0.91054541,64562.0,64561.0,0.0090243]
[1721242732383,1.22032441,64562.0,64561.0,0.0090243]
[1721242732625,1.22032441,64562.0,64561.0,0.000913]
[1721242732626,1.32937191,64562.0,64561.0,0.000913]
[1721242733120,1.30152441,64562.0,64561.0,0.000913]
[1721242736167,1.22032441,64562.0,64561.0,0.000913]
[1721242736732,1.28991044,64562.0,64561.0,0.000913]
[1721242738711,1.28991044,64562.0,64561.0,0.080813]
[1721242739488,1.28991044,64562.0,64561.0,0.0888943]
[1721242740327,1.28990268,64562.0,64561.0,0.0888943]
[1721242741182,0.10567668,64562.0,64561.0,0.1491943]
[1721242741349,0.19098741,64562.0,64561.0,0.1491943]
[1721242742516,0.81054541,64562.0,64561.0,0.141113]
[1721242742715,0.81054541,64562.0,64561.0,0.061213]
[1721242743135,0.81054541,64562.0,64561.0,0.000913]
[1721242743136,1.16670497,64562.0,64561.0,0.000913]
[1721242743421,0.81054541,64562.0,64561.0,0.000913]
[1721242746189,0.91900902,64562.0,64561.0,0.000913]
[1721242746392,0.98080902,64562.0,64561.0,0.000913]
[1721242746597,1.29058802,64562.0,64561.0,0.000913]
[1721242746822,0.98080902,64562.0,64561.0,0.000913]
[1721242746983,0.91900902,64562.0,64561.0,0.000913]
[1721242747804,0.83840902,64562.0,64561.0,0.000913]
[1721242748409,0.8385742,64562.0,64561.0,0.000913]
[1721242748991,0.81054541,64562.0,64561.0,0.000913]
[1721242749182,0.83864855,64562.0,64561.0,0.000913]
[1721242749945,0.83876333,64562.0,64561.0,0.000913]
[1721242751649,0.83881501,64562.0,64561.0,0.000913]
[1721242752240,0.83881251,64562.0,64561.0,0.000913]
[1721242752441,0.06408239,64562.0,64561.0,0.149513]
[1721242752638,0.21897139,64562.0,64561.0,0.1644643]
[1721242752954,0.03609841,64562.0,64561.0,0.1644643]
[1721242753550,0.02309841,64562.0,64561.0,0.1644643]
[1721242753741,0.01909841,64562.0,64561.0,0.1644643]
[1721242754252,0.01309841,64562.0,64561.0,0.1644643]
[1721242754738,0.02009841,64562.0,64561.0,0.78752204]
[1721242755040,0.4662,64573.0,64572.0,0.1417]
[1721242755460,0.47803843,64573.0,64572.0,0.296565]
[1721242755629,0.4662,64573.0,64572.0,0.296565]
[1721242755852,0.47803843,64573.0,64572.0,0.606296]
[1721242756797,0.47803843,64573.0,64572.0,0.916027]
[1721242757053,0.47903843,64573.0,64572.0,1.0667236]
[1721242757262,0.47903843,64573.0,64572.0,0.7569926]
[1721242757638,0.48003843,64573.0,64572.0,0.7649926]
[1721242757871,0.48003843,64573.0,64572.0,1.0607236]
[1721242757872,0.47803843,64573.0,64572.0,1.0607236]
[1721242758434,0.47803843,64573.0,64572.0,1.0707236]
[1721242758435,0.47903843,64573.0,64572.0,1.0707236]
[1721242758751,0.47903843,64573.0,64572.0,1.22510534]
[1721242758948,0.47903843,64573.0,64572.0,1.24810534]
[1721242759320,0.48003843,64573.0,64572.0,1.56983634]
[1721242759512,0.47903843,64573.0,64572.0,1.55783634]
[1721242759713,0.01283843,64573.0,64572.0,1.55783634]
[1721242759917,0.001,64573.0,64572.0,1.55783634]
[1721242760213,0.00083,64578.0,64577.0,0.917267]
[1721242760362,0.00083,64578.0,64577.0,1.47019831]
[1721242760564,0.00083,64578.0,64577.0,1.77990531]
[1721242762488,0.00183,64578.0,64577.0,1.78790531]
[1721242763233,0.00283,64578.0,64577.0,1.79790531]
[1721242763434,0.00283,64578.0,64577.0,0.77990957]
[1721242765345,0.00283,64578.0,64577.0,1.79790531]
[1721242767720,0.00283,64578.0,64577.0,1.84790531]
[1721242768179,0.00283,64578.0,64577.0,1.79790531]
[1721242769573,0.00283,64578.0,64577.0,1.17849131]
[1721242769957,0.00283,64578.0,64577.0,0.95729131]
[1721242770111,0.00283,64578.0,64577.0,1.26699831]
[1721242771798,0.00283,64578.0,64577.0,1.48819831]
[1721242773462,0.00283,64578.0,64577.0,1.53819831]
[1721242773668,0.00283,64578.0,64577.0,1.84790531]
[1721242773843,0.00283,64578.0,64577.0,1.79790531]
[1721242774049,0.00283,64578.0,64577.0,1.84790531]
[1721242775107,0.00283,64578.0,64577.0,1.9764565]
[1721242775310,0.00183,64578.0,64577.0,1.83990531]
[1721242775519,0.00083,64578.0,64577.0,1.95845687]
[1721242775711,0.00183,64578.0,64577.0,2.28716387]
[1721242775880,0.00283,64578.0,64577.0,2.28716387]
[1721242776079,0.00283,64578.0,64577.0,2.27816387]
[1721242776283,0.00183,64578.0,64577.0,2.26816387]
[1721242776502,0.00283,64578.0,64577.0,2.27716387]
[1721242776731,0.00183,64578.0,64577.0,2.2781632]
[1721242777147,0.00183,64578.0,64577.0,2.28716255]
[1721242777148,0.00283,64578.0,64577.0,2.28716255]
[1721242777972,0.00083,64586.0,64585.0,1.58031]
[1721242778194,0.00083,64586.0,64585.0,2.20744198]
[1721242778388,0.00083,64586.0,64585.0,2.2074235]
[1721242779189,0.00083,64586.0,64585.0,2.2214235]
[1721242779514,0.00083,64586.0,64585.0,2.2354235]
[1721242779660,0.00083,64586.0,64585.0,2.38977307]
[1721242779858,0.00083,64586.0,64585.0,2.33977307]
[1721242780281,0.00083,64586.0,64585.0,2.32577307]
[1721242780501,0.00083,64586.0,64585.0,2.33977307]
[1721242781202,0.00083,64586.0,64585.0,2.32577307]
[1721242781417,0.00183,64586.0,64585.0,2.33977307]
[1721242781705,0.00183,64586.0,64585.0,2.32577307]
[1721242782206,0.00283,64586.0,64585.0,2.33977307]
[1721242782491,0.00283,64586.0,64585.0,2.21124131]
[1721242782695,0.00283,64586.0,64585.0,2.33977561]
[1721242782865,0.00083,64586.0,64585.0,2.31177561]
[1721242783114,0.00083,64586.0,64585.0,1.88757231]
[1721242783317,0.00183,64586.0,64585.0,1.99311062]
[1721242784123,0.00283,64586.0,64585.0,2.00711062]
[1721242784478,0.00183,64586.0,64585.0,1.99311062]
[1721242785195,0.00183,64586.0,64585.0,2.01611062]
[1721242785421,0.00183,64586.0,64585.0,2.03011062]
[1721242785573,0.00283,64586.0,64585.0,2.03011062]
[1721242786342,0.00283,64586.0,64585.0,0.52692938]
[1721242786533,0.00283,64586.0,64585.0,0.46572938]
[1721242786687,0.00283,64586.0,64585.0,0.33718357]
[1721242787092,0.00183,64586.0,64585.0,0.32318357]
[1721242787695,0.00283,64586.0,64585.0,0.33418357]
[1721242787920,0.00183,64586.0,64585.0,0.32018357]
[1721242788134,0.00183,64586.0,64585.0,0.32318357]
[1721242788676,0.00283,64586.0,64585.0,0.62785257]
[1721242788793,0.00383,64586.0,64585.0,0.63885257]
[1721242789312,0.00383,64586.0,64585.0,0.32918357]
[1721242789539,0.00383,64586.0,64585.0,0.17434957]
[1721242789743,0.00383,64586.0,64585.0,0.02]
[1721242790148,0.01415319,64586.0,64585.0,0.02]
[1721242793742,0.01415319,64586.0,64585.0,0.174834]
[1721242793951,0.00383,64586.0,64585.0,0.174834]
[1721242794144,0.00383,64586.0,64585.0,1.09195374]
[1721242794298,0.00383,64586.0,64585.0,1.24630331]
[1721242794530,0.00383,64586.0,64585.0,1.55597231]
[1721242794770,0.00383,64586.0,64585.0,1.70753031]
[1721242795690,0.00383,64586.0,64585.0,1.57897231]
[1721242796033,0.00383,64586.0,64585.0,1.70752402]
[1721242796440,0.00383,64586.0,64585.0,1.57897231]
[1721242796693,0.00383,64586.0,64585.0,1.70752658]
[1721242799698,0.00383,64586.0,64585.0,1.70752685]
[1721242800302,0.00312,64586.0,64585.0,0.30290411]
[1721242800509,0.00312,64586.0,64585.0,0.174834]
[1721242800711,0.00312,64586.0,64585.0,0.02]
[1721242802412,0.00312,64586.0,64585.0,0.174834]
[1721242802772,0.00312,64586.0,64585.0,0.70178474]
[1721242802973,0.00312,64586.0,64585.0,1.16300851]
[1721242803173,0.00312,64586.0,64585.0,1.31735808]
[1721242804023,0.00312,64586.0,64585.0,1.62702708]
[1721242804233,0.00312,64586.0,64585.0,1.75602708]
[1721242804596,0.00312,64586.0,64585.0,1.70602708]
[1721242805368,0.00312,64586.0,64585.0,1.70601545]
[1721242805483,0.00165208,64586.0,64585.0,1.70601545]
[1721242805846,0.00093152,64586.0,64585.0,1.70601832]
[1721242805996,0.00093152,64586.0,64585.0,1.71369832]
[1721242807368,0.00093152,64586.0,64585.0,1.71091652]
[1721242808343,0.0621,64592.0,64585.0,0.30780139]
[1721242808503,0.0621,64592.0,64587.0,0.157623]
[1721242808905,0.07667913,64595.0,64589.0,0.002794]
[1721242809106,0.4662,64597.0,64591.0,0.30964]
[1721242809307,0.4662,64597.0,64594.0,0.154812]
[1721242809955,0.4662,64597.0,64593.0,0.154815]
[1721242810203,0.4662,64597.0,64594.0,0.13239107]
[1721242810408,0.4662,64597.0,64594.0,0.44201507]
[1721242810737,0.4662,64597.0,64596.0,0.2212]
[1721242810884,0.4662,64597.0,64596.0,0.376008]
[1721242811094,0.4662,64597.0,64596.0,1.29802174]
[1721242811308,0.4662,64597.0,64596.0,1.77839962]
[1721242811471,0.4722,64597.0,64596.0,1.77839962]
[1721242811667,0.006,64597.0,64596.0,1.77839962]
[1721242812086,0.008,64597.0,64596.0,1.77839962]
[1721242812486,0.004,64597.0,64596.0,1.77839962]